[Event "*** Titled Tuesday Blitz"]
[Site "Chess.com"]
[Date "2020.12.01"]
[Round "8"]
[White "catzapto"]
[Black "vova-79"]
[Result "0-1"]
[WhiteElo "2118"]
[BlackElo "2453"]
[TimeControl "180+1"]
[EndTime "11:27:03 PST"]
[Termination "vova-79 won by checkmate"]

1. e4 {[%clk 0:03:00.9]} 1... e6 {[%clk 0:02:58.5]} 2. d4 {[%clk 0:02:59.2]}
2... d5 {[%clk 0:02:58]} 3. Nd2 {[%clk 0:03:00.1]} 3... dxe4 {[%clk 0:02:57.1]}
4. Nxe4 {[%clk 0:03:00.5]} 4... Nd7 {[%clk 0:02:57.8]} 5. Nf3 {[%clk 0:03:00.9]}
5... Ngf6 {[%clk 0:02:58.7]} 6. Nxf6+ {[%clk 0:02:58]} 6... Nxf6 {[%clk
0:02:59.6]} 7. Bd3 {[%clk 0:02:58.4]} 7... c5 {[%clk 0:02:58.6]} 8. c3 {[%clk
0:02:57.8]} 8... cxd4 {[%clk 0:02:57.8]} 9. Nxd4 {[%clk 0:02:58.1]} 9... Bc5
{[%clk 0:02:57.6]} 10. Nb3 {[%clk 0:02:56.9]} 10... Bd6 {[%clk 0:02:53.1]} 11.
Bb5+ {[%clk 0:02:54.6]} 11... Ke7 {[%clk 0:02:44.3]} 12. Bg5 {[%clk 0:02:49.7]}
12... Qc7 {[%clk 0:02:42.7]} 13. Nd4 {[%clk 0:02:43.3]} 13... Rd8 {[%clk
0:02:22.5]} 14. Qe2 {[%clk 0:02:23.2]} 14... Be5 {[%clk 0:02:12.4]} 15. Nf3
{[%clk 0:02:00.3]} 15... Bf4 {[%clk 0:02:05.3]} 16. g3 {[%clk 0:01:47]} 16...
Bxg5 {[%clk 0:01:59.8]} 17. Nxg5 {[%clk 0:01:47.9]} 17... Bd7 {[%clk 0:01:51.5]}
18. Bd3 {[%clk 0:01:44.9]} 18... Bc6 {[%clk 0:01:43.8]} 19. f3 {[%clk
0:01:44.2]} 19... Rd5 {[%clk 0:01:20.1]} 20. Ne4 {[%clk 0:01:43.5]} 20... Rad8
{[%clk 0:01:17.9]} 21. Bc4 {[%clk 0:01:36.2]} 21... Re5 {[%clk 0:01:14.3]} 22.
Bd3 {[%clk 0:01:16.5]} 22... Rxd3 {[%clk 0:01:06.5]} 23. Qxd3 {[%clk 0:01:16.3]}
23... Nxe4 {[%clk 0:01:05.6]} 24. O-O {[%clk 0:00:51.4]} 24... Qb6+ {[%clk
0:00:50.5]} 25. Qd4 {[%clk 0:00:50.5]} 25... Nd2 {[%clk 0:00:46.1]} 26. Rf2
{[%clk 0:00:25.8]} 26... Nxf3+ {[%clk 0:00:39.2]} 27. Rxf3 {[%clk 0:00:25.9]}
27... Bxf3 {[%clk 0:00:37]} 28. Kf2 {[%clk 0:00:21.6]} 28... Bc6 {[%clk
0:00:33.7]} 29. Rd1 {[%clk 0:00:20]} 29... Qxd4+ {[%clk 0:00:32.1]} 30. Rxd4
{[%clk 0:00:20.5]} 30... Rd5 {[%clk 0:00:31.9]} 31. Rf4 {[%clk 0:00:20.2]} 31...
f5 {[%clk 0:00:31.3]} 32. Kf3 {[%clk 0:00:21.1]} 32... g5 {[%clk 0:00:30.7]} 33.
Rb4 {[%clk 0:00:19.5]} 33... Rd2+ {[%clk 0:00:29.3]} 34. Ke3 {[%clk 0:00:20]}
34... Rxh2 {[%clk 0:00:27.7]} 35. a4 {[%clk 0:00:20.1]} 35... h5 {[%clk
0:00:26.7]} 36. a5 {[%clk 0:00:19.6]} 36... h4 {[%clk 0:00:24.8]} 37. gxh4
{[%clk 0:00:18.8]} 37... Rxh4 {[%clk 0:00:23.9]} 38. Rb3 {[%clk 0:00:19.2]}
38... a6 {[%clk 0:00:23]} 39. Ra3 {[%clk 0:00:19]} 39... f4+ {[%clk 0:00:21.8]}
40. Kf2 {[%clk 0:00:18.9]} 40... Rh2+ {[%clk 0:00:20.9]} 41. Kg1 {[%clk
0:00:18.5]} 41... Rxb2 {[%clk 0:00:21.6]} 42. c4 {[%clk 0:00:18.5]} 42... g4
{[%clk 0:00:21]} 43. c5 {[%clk 0:00:16.5]} 43... g3 {[%clk 0:00:20.1]} 44. Ra1
{[%clk 0:00:14.6]} 44... f3 {[%clk 0:00:19.4]} 45. Rd1 {[%clk 0:00:14.1]} 45...
f2+ {[%clk 0:00:18.5]} 46. Kf1 {[%clk 0:00:13.6]} 46... g2# {[%clk 0:00:18.2]}
0-1

[Event "*** Titled Tuesday Blitz"]
[Site "Chess.com"]
[Date "2020.12.01"]
[Round "8"]
[White "PowerThinking2650"]
[Black "Eloist"]
[Result "1-0"]
[WhiteElo "2438"]
[BlackElo "2305"]
[TimeControl "180+1"]
[EndTime "11:27:04 PST"]
[Termination "PowerThinking2650 won by checkmate"]

1. e4 {[%clk 0:03:00.9]} 1... e6 {[%clk 0:02:59.1]} 2. d4 {[%clk 0:03:00]} 2...
d5 {[%clk 0:02:59.1]} 3. Nd2 {[%clk 0:02:59.9]} 3... Nf6 {[%clk 0:02:59.2]} 4.
e5 {[%clk 0:03:00.3]} 4... Nfd7 {[%clk 0:02:59.3]} 5. Bd3 {[%clk 0:03:01]} 5...
c5 {[%clk 0:02:59.4]} 6. c3 {[%clk 0:03:01.7]} 6... b6 {[%clk 0:02:59.6]} 7. Ne2
{[%clk 0:03:01.4]} 7... Ba6 {[%clk 0:02:59.6]} 8. Bb1 {[%clk 0:03:01.4]} 8...
Nc6 {[%clk 0:02:59.1]} 9. Nf3 {[%clk 0:03:00.9]} 9... cxd4 {[%clk 0:02:59.3]}
10. cxd4 {[%clk 0:02:59]} 10... Bb4+ {[%clk 0:02:59.2]} 11. Bd2 {[%clk
0:02:56.6]} 11... Qe7 {[%clk 0:02:59.3]} 12. O-O {[%clk 0:02:48.4]} 12... Bxd2
{[%clk 0:02:59]} 13. Qxd2 {[%clk 0:02:46.6]} 13... Qb4 {[%clk 0:02:59.3]} 14.
Qxb4 {[%clk 0:02:38.3]} 14... Nxb4 {[%clk 0:02:58.6]} 15. Re1 {[%clk 0:02:37.9]}
15... Rc8 {[%clk 0:02:47.6]} 16. Nc3 {[%clk 0:02:37.1]} 16... Nd3 {[%clk
0:02:26.6]} 17. Bxd3 {[%clk 0:02:34.9]} 17... Bxd3 {[%clk 0:02:25.8]} 18. Rac1
{[%clk 0:02:34.1]} 18... Ke7 {[%clk 0:02:24.4]} 19. Nd2 {[%clk 0:02:26.7]} 19...
Nb8 {[%clk 0:02:12.6]} 20. f4 {[%clk 0:02:20.5]} 20... Nc6 {[%clk 0:02:10]} 21.
Nf3 {[%clk 0:02:20.6]} 21... h6 {[%clk 0:01:45.3]} 22. h4 {[%clk 0:02:18.8]}
22... Na5 {[%clk 0:01:18.4]} 23. b3 {[%clk 0:02:11.7]} 23... Rc6 {[%clk
0:01:12.7]} 24. Re3 {[%clk 0:01:16.4]} 24... Bf5 {[%clk 0:01:07.4]} 25. Rce1
{[%clk 0:01:10.4]} 25... a6 {[%clk 0:00:44.6]} 26. Na4 {[%clk 0:01:10.2]} 26...
Rhc8 {[%clk 0:00:42.5]} 27. R1e2 {[%clk 0:00:56.8]} 27... Bg4 {[%clk 0:00:41.2]}
28. Kf2 {[%clk 0:00:55.6]} 28... Kd7 {[%clk 0:00:33.6]} 29. Rd3 {[%clk
0:00:43.8]} 29... Kc7 {[%clk 0:00:32.9]} 30. Rdd2 {[%clk 0:00:43]} 30... Kb7
{[%clk 0:00:32.4]} 31. Re3 {[%clk 0:00:42.4]} 31... Rc1 {[%clk 0:00:31.1]} 32.
Nh2 {[%clk 0:00:40.5]} 32... Bf5 {[%clk 0:00:28.8]} 33. g4 {[%clk 0:00:40.8]}
33... Be4 {[%clk 0:00:28.8]} 34. Nf1 {[%clk 0:00:40.2]} 34... Ra1 {[%clk
0:00:27.4]} 35. Ng3 {[%clk 0:00:37.7]} 35... Rcc1 {[%clk 0:00:22.3]} 36. Nxe4
{[%clk 0:00:35.9]} 36... Rf1+ {[%clk 0:00:22]} 37. Kg3 {[%clk 0:00:34.1]} 37...
dxe4 {[%clk 0:00:20]} 38. Rxe4 {[%clk 0:00:30.7]} 38... Rg1+ {[%clk 0:00:20]}
39. Rg2 {[%clk 0:00:26.3]} 39... Rad1 {[%clk 0:00:17.8]} 40. Rxg1 {[%clk
0:00:22.5]} 40... Rxg1+ {[%clk 0:00:18.7]} 41. Kf3 {[%clk 0:00:23]} 41... Rh1
{[%clk 0:00:15.9]} 42. h5 {[%clk 0:00:19.8]} 42... Rh2 {[%clk 0:00:14.9]} 43.
Re2 {[%clk 0:00:19.8]} 43... Rh3+ {[%clk 0:00:14.4]} 44. Ke4 {[%clk 0:00:19.3]}
44... Rg3 {[%clk 0:00:13.4]} 45. d5 {[%clk 0:00:18.6]} 45... Rxg4 {[%clk
0:00:13.1]} 46. d6 {[%clk 0:00:17.6]} 46... Kc6 {[%clk 0:00:12.8]} 47. Rc2+
{[%clk 0:00:17.4]} 47... Kd7 {[%clk 0:00:12.5]} 48. Nxb6+ {[%clk 0:00:17.3]}
48... Kd8 {[%clk 0:00:09.5]} 49. Rc8# {[%clk 0:00:18.2]} 1-0

[Event "*** Titled Tuesday Blitz"]
[Site "Chess.com"]
[Date "2020.12.01"]
[Round "8"]
[White "MatyChess1"]
[Black "vladimirdamjanovic"]
[Result "1-0"]
[WhiteElo "2571"]
[BlackElo "2455"]
[TimeControl "180+1"]
[EndTime "11:27:05 PST"]
[Termination "MatyChess1 won by resignation"]

1. e4 {[%clk 0:03:00.9]} 1... c6 {[%clk 0:02:59.7]} 2. Nc3 {[%clk 0:03:00]} 2...
d5 {[%clk 0:02:59.9]} 3. Nf3 {[%clk 0:03:00.9]} 3... dxe4 {[%clk 0:02:59]} 4.
Nxe4 {[%clk 0:02:59.4]} 4... Nf6 {[%clk 0:02:59.6]} 5. Qe2 {[%clk 0:02:59.5]}
5... Nxe4 {[%clk 0:02:56.7]} 6. Qxe4 {[%clk 0:03:00.4]} 6... Nd7 {[%clk
0:02:54]} 7. Bc4 {[%clk 0:03:00.2]} 7... Nf6 {[%clk 0:02:52.1]} 8. Ne5 {[%clk
0:03:00.8]} 8... e6 {[%clk 0:02:49.8]} 9. Qe2 {[%clk 0:03:01.3]} 9... Bd6 {[%clk
0:02:47.6]} 10. O-O {[%clk 0:02:59.2]} 10... Bxe5 {[%clk 0:02:47.2]} 11. Qxe5
{[%clk 0:02:58.8]} 11... O-O {[%clk 0:02:45.8]} 12. b3 {[%clk 0:02:58.4]} 12...
b5 {[%clk 0:02:45.8]} 13. Bd3 {[%clk 0:02:57.9]} 13... Qd5 {[%clk 0:02:44.6]}
14. Qg3 {[%clk 0:02:57.6]} 14... Ne4 {[%clk 0:01:59.1]} 15. Qf4 {[%clk
0:02:51.8]} 15... Nc5 {[%clk 0:01:56.2]} 16. Be2 {[%clk 0:02:46.2]} 16... Qe4
{[%clk 0:01:54.8]} 17. Qe3 {[%clk 0:02:36.3]} 17... Qxe3 {[%clk 0:01:52.2]} 18.
fxe3 {[%clk 0:02:35.8]} 18... Rd8 {[%clk 0:01:41.5]} 19. d3 {[%clk 0:02:27.2]}
19... e5 {[%clk 0:01:36.5]} 20. e4 {[%clk 0:02:25.3]} 20... Ne6 {[%clk
0:01:34.8]} 21. Be3 {[%clk 0:02:22.8]} 21... c5 {[%clk 0:01:31.1]} 22. c3 {[%clk
0:02:15.9]} 22... Bb7 {[%clk 0:01:26.1]} 23. a4 {[%clk 0:01:46.9]} 23... a6
{[%clk 0:01:24.9]} 24. g3 {[%clk 0:01:35.7]} 24... g6 {[%clk 0:01:20.4]} 25. Rf6
{[%clk 0:01:28.1]} 25... Kg7 {[%clk 0:01:15.3]} 26. Raf1 {[%clk 0:01:27.8]}
26... Nf4 {[%clk 0:01:07]} 27. Rxf7+ {[%clk 0:01:02.5]} 27... Kxf7 {[%clk
0:01:06.8]} 28. gxf4 {[%clk 0:01:03.4]} 28... exf4 {[%clk 0:01:00.7]} 29. Rxf4+
{[%clk 0:01:02.1]} 29... Kg7 {[%clk 0:00:59.2]} 30. Bxc5 {[%clk 0:00:58.3]}
30... bxa4 {[%clk 0:00:58.5]} 31. bxa4 {[%clk 0:00:57.4]} 31... Rac8 {[%clk
0:00:55.1]} 32. Bd4+ {[%clk 0:00:57.2]} 32... Kg8 {[%clk 0:00:52.7]} 33. Bg4
{[%clk 0:00:56.2]} 33... Rc6 {[%clk 0:00:49.9]} 34. Kf2 {[%clk 0:00:35.8]} 34...
Rf8 {[%clk 0:00:47.8]} 35. Rxf8+ {[%clk 0:00:35.5]} 35... Kxf8 {[%clk 0:00:48]}
36. Ke3 {[%clk 0:00:36.4]} 36... Ke7 {[%clk 0:00:45.4]} 37. c4 {[%clk
0:00:34.9]} 37... h5 {[%clk 0:00:44.6]} 38. Bh3 {[%clk 0:00:28.4]} 38... Bc8
{[%clk 0:00:39.4]} 39. Bg2 {[%clk 0:00:28]} 39... h4 {[%clk 0:00:38.1]} 40. e5
{[%clk 0:00:28.1]} 40... Rc7 {[%clk 0:00:33.1]} 41. Bc3 {[%clk 0:00:26.3]} 41...
Bb7 {[%clk 0:00:30.4]} 42. Bh3 {[%clk 0:00:23.7]} 42... Bc8 {[%clk 0:00:29.7]}
43. Bb4+ {[%clk 0:00:22.9]} 43... Ke8 {[%clk 0:00:28.9]} 44. Bg2 {[%clk
0:00:20.4]} 44... Bb7 {[%clk 0:00:27.6]} 45. Bf1 {[%clk 0:00:19.9]} 45... Rf7
{[%clk 0:00:25.2]} 46. Be2 {[%clk 0:00:20.1]} 46... Rf5 {[%clk 0:00:23.5]} 47.
d4 {[%clk 0:00:19.8]} 47... g5 {[%clk 0:00:22.2]} 48. e6 {[%clk 0:00:15.4]}
48... Rf4 {[%clk 0:00:21.3]} 49. Bh5+ {[%clk 0:00:15.2]} 49... Kd8 {[%clk
0:00:17.2]} 50. e7+ {[%clk 0:00:15.4]} 50... Kc7 {[%clk 0:00:17.6]} 51. e8=Q
{[%clk 0:00:16.3]} 51... Re4+ {[%clk 0:00:17.4]} 52. Qxe4 {[%clk 0:00:16.6]}
52... Bxe4 {[%clk 0:00:18.3]} 53. Kxe4 {[%clk 0:00:17.2]} 1-0

[Event "*** Titled Tuesday Blitz"]
[Site "Chess.com"]
[Date "2020.12.01"]
[Round "8"]
[White "mirciulica14"]
[Black "woodhy"]
[Result "1/2-1/2"]
[WhiteElo "2594"]
[BlackElo "2467"]
[TimeControl "180+1"]
[EndTime "11:27:05 PST"]
[Termination "Game drawn by repetition"]

1. d4 {[%clk 0:01:07.7]} 1... Nf6 {[%clk 0:02:58.9]} 2. c4 {[%clk 0:01:08.4]}
2... e6 {[%clk 0:02:58.8]} 3. Nf3 {[%clk 0:01:08.7]} 3... b6 {[%clk 0:02:58.4]}
4. a3 {[%clk 0:01:08.8]} 4... Ba6 {[%clk 0:02:57.9]} 5. b3 {[%clk 0:01:06.6]}
5... d5 {[%clk 0:02:53.2]} 6. cxd5 {[%clk 0:01:06.1]} 6... exd5 {[%clk
0:02:49.8]} 7. Nc3 {[%clk 0:01:03]} 7... Nbd7 {[%clk 0:02:48.1]} 8. g3 {[%clk
0:01:00.2]} 8... Bd6 {[%clk 0:02:47.9]} 9. Bg2 {[%clk 0:01:00.5]} 9... O-O
{[%clk 0:02:48.1]} 10. O-O {[%clk 0:01:00.7]} 10... Re8 {[%clk 0:02:48.1]} 11.
Re1 {[%clk 0:00:49.4]} 11... Ne4 {[%clk 0:02:40.6]} 12. Bb2 {[%clk 0:00:47.3]}
12... Nxc3 {[%clk 0:02:39.1]} 13. Bxc3 {[%clk 0:00:48.2]} 13... Nf6 {[%clk
0:02:25.7]} 14. Nd2 {[%clk 0:00:48]} 14... Qe7 {[%clk 0:02:21]} 15. e3 {[%clk
0:00:44.3]} 15... Bd3 {[%clk 0:02:12.1]} 16. Bb2 {[%clk 0:00:24.7]} 16... h5
{[%clk 0:01:59.1]} 17. h4 {[%clk 0:00:21.7]} 17... c6 {[%clk 0:01:52]} 18. Qc1
{[%clk 0:00:18.3]} 18... Rac8 {[%clk 0:01:50.5]} 19. Qc3 {[%clk 0:00:18.1]}
19... Bf5 {[%clk 0:01:47.3]} 20. b4 {[%clk 0:00:18.4]} 20... Ng4 {[%clk
0:01:46.1]} 21. e4 {[%clk 0:00:16.3]} 21... dxe4 {[%clk 0:01:43.6]} 22. Nxe4
{[%clk 0:00:17.2]} 22... Bxe4 {[%clk 0:01:42.1]} 23. Rxe4 {[%clk 0:00:17.4]}
23... Qf6 {[%clk 0:01:42.6]} 24. Rxe8+ {[%clk 0:00:17.7]} 24... Rxe8 {[%clk
0:01:42.4]} 25. Qf3 {[%clk 0:00:16.7]} 25... c5 {[%clk 0:01:35.3]} 26. Qxf6
{[%clk 0:00:15.2]} 26... Nxf6 {[%clk 0:01:36.2]} 27. dxc5 {[%clk 0:00:15.6]}
27... bxc5 {[%clk 0:01:36.7]} 28. Rd1 {[%clk 0:00:15]} 28... Be7 {[%clk
0:01:29.6]} 29. Re1 {[%clk 0:00:09.5]} 29... cxb4 {[%clk 0:01:28.5]} 30. Bxf6
{[%clk 0:00:06]} 30... gxf6 {[%clk 0:01:28.2]} 31. axb4 {[%clk 0:00:05.8]} 31...
Kf8 {[%clk 0:01:28.2]} 32. Bc6 {[%clk 0:00:05.6]} 32... Rc8 {[%clk 0:01:25.9]}
33. b5 {[%clk 0:00:05.6]} 33... Rc7 {[%clk 0:01:26.2]} 34. Ra1 {[%clk
0:00:05.2]} 34... Bc5 {[%clk 0:01:25.5]} 35. Bf3 {[%clk 0:00:05.1]} 35... Bb6
{[%clk 0:01:24.3]} 36. Ra2 {[%clk 0:00:04.2]} 36... Rc5 {[%clk 0:01:24]} 37. Rb2
{[%clk 0:00:04.7]} 37... Kg7 {[%clk 0:01:23]} 38. Kg2 {[%clk 0:00:05.3]} 38...
Kg6 {[%clk 0:01:23.1]} 39. Bc6 {[%clk 0:00:05.8]} 39... a6 {[%clk 0:01:21.1]}
40. Be4+ {[%clk 0:00:03.9]} 40... f5 {[%clk 0:01:20.8]} 41. bxa6 {[%clk
0:00:04.3]} 41... fxe4 {[%clk 0:01:18.9]} 42. Rxb6+ {[%clk 0:00:04.2]} 42... f6
{[%clk 0:01:19.3]} 43. Rb4 {[%clk 0:00:03.1]} 43... Ra5 {[%clk 0:01:10]} 44.
Rxe4 {[%clk 0:00:02.8]} 44... Kf5 {[%clk 0:01:08.5]} 45. Rb4 {[%clk 0:00:03.1]}
45... Rxa6 {[%clk 0:01:08.5]} 46. Rb5+ {[%clk 0:00:03.7]} 46... Kg6 {[%clk
0:01:08.8]} 47. Rb8 {[%clk 0:00:04.4]} 47... Ra7 {[%clk 0:01:08.7]} 48. Rg8+
{[%clk 0:00:05]} 48... Kh7 {[%clk 0:01:09.1]} 49. Rb8 {[%clk 0:00:05.9]} 49...
Rd7 {[%clk 0:01:08.7]} 50. Rb6 {[%clk 0:00:06.5]} 50... Kg6 {[%clk 0:01:09.1]}
51. Rb5 {[%clk 0:00:07.1]} 51... Rd4 {[%clk 0:01:09]} 52. Rc5 {[%clk 0:00:07.1]}
52... Rb4 {[%clk 0:01:08.8]} 53. Ra5 {[%clk 0:00:07.5]} 53... Rc4 {[%clk
0:01:08.7]} 54. Kf3 {[%clk 0:00:08.1]} 54... Rc1 {[%clk 0:01:08.7]} 55. Kg2
{[%clk 0:00:08.4]} 55... Kh6 {[%clk 0:01:08.7]} 56. Kf3 {[%clk 0:00:08.8]} 56...
Rg1 {[%clk 0:01:07.7]} 57. Kf4 {[%clk 0:00:08.4]} 57... Rg2 {[%clk 0:01:07]} 58.
f3 {[%clk 0:00:08.6]} 58... Kg6 {[%clk 0:01:06.5]} 59. g4 {[%clk 0:00:08.5]}
59... hxg4 {[%clk 0:01:05.6]} 60. fxg4 {[%clk 0:00:09.4]} 60... Rf2+ {[%clk
0:01:05.5]} 61. Kg3 {[%clk 0:00:09.5]} 61... Rf1 {[%clk 0:01:05.9]} 62. h5+
{[%clk 0:00:09.9]} 62... Kh6 {[%clk 0:01:04.8]} 63. Ra8 {[%clk 0:00:10.6]} 63...
Kg7 {[%clk 0:01:03.5]} 64. Re8 {[%clk 0:00:08.9]} 64... Kf7 {[%clk 0:01:03.2]}
65. Ra8 {[%clk 0:00:08.7]} 65... Kg7 {[%clk 0:01:03.4]} 66. Ra5 {[%clk
0:00:06.7]} 66... Kh6 {[%clk 0:01:03.1]} 67. Ra8 {[%clk 0:00:06.6]} 67... Kg7
{[%clk 0:01:02.4]} 1/2-1/2

[Event "*** Titled Tuesday Blitz"]
[Site "Chess.com"]
[Date "2020.12.01"]
[Round "8"]
[White "ChelsieMonica"]
[Black "paulrusan"]
[Result "1-0"]
[WhiteElo "2385"]
[BlackElo "2253"]
[TimeControl "180+1"]
[EndTime "11:27:05 PST"]
[Termination "ChelsieMonica won by checkmate"]

1. c4 {[%clk 0:03:00.9]} 1... Nf6 {[%clk 0:02:59.3]} 2. Nf3 {[%clk 0:03:01.4]}
2... g6 {[%clk 0:02:59.7]} 3. e3 {[%clk 0:03:01.9]} 3... Bg7 {[%clk 0:03:00]} 4.
d4 {[%clk 0:03:02.4]} 4... d6 {[%clk 0:02:59.9]} 5. Be2 {[%clk 0:03:03]} 5...
O-O {[%clk 0:03:00]} 6. O-O {[%clk 0:03:03.2]} 6... Nbd7 {[%clk 0:03:00.6]} 7.
Nc3 {[%clk 0:03:02]} 7... e5 {[%clk 0:03:01.2]} 8. dxe5 {[%clk 0:03:02.9]} 8...
dxe5 {[%clk 0:03:01]} 9. e4 {[%clk 0:03:02.8]} 9... Nc5 {[%clk 0:02:59.8]} 10.
Qc2 {[%clk 0:03:01.9]} 10... c6 {[%clk 0:02:48.1]} 11. Bg5 {[%clk 0:02:54.5]}
11... h6 {[%clk 0:02:46]} 12. Rad1 {[%clk 0:02:54.1]} 12... Qe7 {[%clk
0:02:45.6]} 13. Bxf6 {[%clk 0:02:51.6]} 13... Bxf6 {[%clk 0:02:44.8]} 14. Rd2
{[%clk 0:02:51]} 14... Bg4 {[%clk 0:02:41.2]} 15. h3 {[%clk 0:02:50.7]} 15...
Bxf3 {[%clk 0:02:40.7]} 16. Bxf3 {[%clk 0:02:51.6]} 16... Ne6 {[%clk 0:02:40.7]}
17. Ne2 {[%clk 0:02:52]} 17... Rfd8 {[%clk 0:02:37.5]} 18. Rfd1 {[%clk 0:02:52]}
18... Nd4 {[%clk 0:02:37.4]} 19. Nxd4 {[%clk 0:02:51.9]} 19... exd4 {[%clk
0:02:37.7]} 20. Qd3 {[%clk 0:02:51.5]} 20... c5 {[%clk 0:02:37.6]} 21. g3 {[%clk
0:02:47.7]} 21... h5 {[%clk 0:02:35.6]} 22. Bg2 {[%clk 0:02:47.7]} 22... h4
{[%clk 0:02:35.8]} 23. Re2 {[%clk 0:02:46.7]} 23... hxg3 {[%clk 0:02:32.8]} 24.
Qxg3 {[%clk 0:02:47.6]} 24... b5 {[%clk 0:02:16.3]} 25. e5 {[%clk 0:02:41.9]}
25... Bh4 {[%clk 0:02:16]} 26. Qg4 {[%clk 0:02:42.3]} 26... Rab8 {[%clk
0:02:12.4]} 27. e6 {[%clk 0:02:42.2]} 27... Bf6 {[%clk 0:01:50]} 28. exf7+
{[%clk 0:02:40.8]} 28... Qxf7 {[%clk 0:01:50.3]} 29. Bd5 {[%clk 0:02:40.9]}
29... Rxd5 {[%clk 0:01:50.4]} 30. cxd5 {[%clk 0:02:41.8]} 30... c4 {[%clk
0:01:46.3]} 31. Re6 {[%clk 0:02:40.6]} 31... d3 {[%clk 0:01:38.9]} 32. d6 {[%clk
0:02:40.6]} 32... Rd8 {[%clk 0:01:36.7]} 33. h4 {[%clk 0:02:38.1]} 33... Kh7
{[%clk 0:01:23.9]} 34. Qe4 {[%clk 0:02:21.2]} 34... Kg7 {[%clk 0:01:14.9]} 35.
b3 {[%clk 0:02:01.5]} 35... Rd7 {[%clk 0:00:58.2]} 36. bxc4 {[%clk 0:02:00.1]}
36... bxc4 {[%clk 0:00:58.6]} 37. h5 {[%clk 0:01:41.6]} 37... gxh5 {[%clk
0:00:56.7]} 38. Kh1 {[%clk 0:01:41.1]} 38... c3 {[%clk 0:00:38.9]} 39. Rg1+
{[%clk 0:01:37.1]} 39... Kf8 {[%clk 0:00:34.5]} 40. Qf5 {[%clk 0:01:29.3]} 40...
Bd4 {[%clk 0:00:19.6]} 41. Qe4 {[%clk 0:01:24.2]} 41... Bf6 {[%clk 0:00:14.2]}
42. Re1 {[%clk 0:00:39]} 42... d2 {[%clk 0:00:14.1]} 43. Re8+ {[%clk 0:00:38.5]}
43... Kg7 {[%clk 0:00:14.2]} 44. Rg1+ {[%clk 0:00:38.2]} 44... Kh6 {[%clk
0:00:12.6]} 45. Qf4+ {[%clk 0:00:36]} 45... Kh7 {[%clk 0:00:12.8]} 46. Qf5+
{[%clk 0:00:33.4]} 46... Kh6 {[%clk 0:00:12]} 47. Reg8 {[%clk 0:00:26.4]} 47...
d1=Q {[%clk 0:00:08.7]} 48. Rg6+ {[%clk 0:00:23.9]} 48... Qxg6 {[%clk
0:00:02.7]} 49. Qxg6# {[%clk 0:00:23.7]} 1-0

[Event "*** Titled Tuesday Blitz"]
[Site "Chess.com"]
[Date "2020.12.01"]
[Round "8"]
[White "guillembaches"]
[Black "politeplayer"]
[Result "1/2-1/2"]
[WhiteElo "2381"]
[BlackElo "2258"]
[TimeControl "180+1"]
[EndTime "11:27:05 PST"]
[Termination "Game drawn - insufficient material"]

1. c4 {[%clk 0:03:00.9]} 1... e6 {[%clk 0:02:59.3]} 2. d4 {[%clk 0:02:59.7]}
2... d5 {[%clk 0:02:59.5]} 3. Nc3 {[%clk 0:02:59.7]} 3... c5 {[%clk 0:02:57.3]}
4. e3 {[%clk 0:02:59.6]} 4... Nf6 {[%clk 0:02:56.6]} 5. Nf3 {[%clk 0:02:59.4]}
5... a6 {[%clk 0:02:56.1]} 6. dxc5 {[%clk 0:02:56.6]} 6... Bxc5 {[%clk
0:02:55.4]} 7. a3 {[%clk 0:02:56.9]} 7... O-O {[%clk 0:02:54.4]} 8. b4 {[%clk
0:02:56.9]} 8... Be7 {[%clk 0:02:52.3]} 9. Bb2 {[%clk 0:02:56.9]} 9... dxc4
{[%clk 0:02:46.8]} 10. Qxd8 {[%clk 0:02:48.3]} 10... Rxd8 {[%clk 0:02:46.6]} 11.
Bxc4 {[%clk 0:02:48.5]} 11... b5 {[%clk 0:02:35]} 12. Bb3 {[%clk 0:02:48.2]}
12... Bb7 {[%clk 0:02:34.9]} 13. Ke2 {[%clk 0:02:46.3]} 13... Nbd7 {[%clk
0:02:31.8]} 14. Rhd1 {[%clk 0:02:45.4]} 14... Nb6 {[%clk 0:02:31.3]} 15. Rxd8+
{[%clk 0:02:33.4]} 15... Rxd8 {[%clk 0:02:30.4]} 16. Rd1 {[%clk 0:02:33.2]}
16... Rxd1 {[%clk 0:02:29.2]} 17. Nxd1 {[%clk 0:02:30.3]} 17... Bd5 {[%clk
0:02:27]} 18. Bxd5 {[%clk 0:02:23.1]} 18... Nfxd5 {[%clk 0:02:26.7]} 19. Nd2
{[%clk 0:02:01.2]} 19... Na4 {[%clk 0:02:19.3]} 20. Bd4 {[%clk 0:01:40.5]} 20...
Bf6 {[%clk 0:02:10.4]} 21. Bxf6 {[%clk 0:01:36.5]} 21... gxf6 {[%clk 0:02:10.7]}
22. Kd3 {[%clk 0:01:33.2]} 22... Kf8 {[%clk 0:02:07.8]} 23. g3 {[%clk
0:01:32.3]} 23... Ke7 {[%clk 0:02:06.8]} 24. e4 {[%clk 0:01:32.5]} 24... Ndb6
{[%clk 0:02:02.5]} 25. f4 {[%clk 0:01:13.8]} 25... f5 {[%clk 0:02:01.8]} 26.
exf5 {[%clk 0:01:09.1]} 26... exf5 {[%clk 0:02:00.4]} 27. Kd4 {[%clk 0:01:07.6]}
27... Kd6 {[%clk 0:01:54.6]} 28. Ne3 {[%clk 0:01:04.8]} 28... Ke6 {[%clk
0:01:48.6]} 29. Nb3 {[%clk 0:01:04.8]} 29... h5 {[%clk 0:01:27.8]} 30. Nc5+
{[%clk 0:01:01.8]} 30... Nxc5 {[%clk 0:01:14.7]} 31. Kxc5 {[%clk 0:00:57.7]}
31... Na4+ {[%clk 0:01:10.6]} 32. Kc6 {[%clk 0:00:55.8]} 32... Nc3 {[%clk
0:01:08.3]} 33. Kb6 {[%clk 0:00:54.5]} 33... Nb1 {[%clk 0:00:56.1]} 34. Kxa6
{[%clk 0:00:48.7]} 34... Nxa3 {[%clk 0:00:55]} 35. h4 {[%clk 0:00:40.5]} 35...
Nc4 {[%clk 0:00:53.4]} 36. Nc2 {[%clk 0:00:36.5]} 36... Nd6 {[%clk 0:00:53.1]}
37. Nd4+ {[%clk 0:00:29.9]} 37... Kd5 {[%clk 0:00:52.8]} 38. Nxb5 {[%clk
0:00:30.1]} 38... Ne4 {[%clk 0:00:52.2]} 39. Nc7+ {[%clk 0:00:22.5]} 39... Kd6
{[%clk 0:00:51.5]} 40. Ne8+ {[%clk 0:00:20.2]} 40... Ke7 {[%clk 0:00:49.2]} 41.
Ng7 {[%clk 0:00:20]} 41... Nxg3 {[%clk 0:00:48.6]} 42. b5 {[%clk 0:00:18.8]}
42... Ne4 {[%clk 0:00:44.1]} 43. b6 {[%clk 0:00:18.2]} 43... Nc5+ {[%clk
0:00:42.4]} 44. Ka7 {[%clk 0:00:18]} 44... Kd6 {[%clk 0:00:41]} 45. b7 {[%clk
0:00:18.2]} 45... Nxb7 {[%clk 0:00:40.5]} 46. Kxb7 {[%clk 0:00:19.1]} 46... Kd5
{[%clk 0:00:41]} 47. Nxh5 {[%clk 0:00:19]} 47... Ke4 {[%clk 0:00:40.8]} 48. Kc6
{[%clk 0:00:14.5]} 48... Kf3 {[%clk 0:00:41]} 49. Kd5 {[%clk 0:00:14.8]} 49...
Kg4 {[%clk 0:00:40.8]} 50. Ng7 {[%clk 0:00:14.9]} 50... Kxf4 {[%clk 0:00:40.7]}
51. Kd4 {[%clk 0:00:10.3]} 51... Kg4 {[%clk 0:00:40.7]} 52. h5 {[%clk
0:00:09.6]} 52... Kg5 {[%clk 0:00:41]} 53. Ke5 {[%clk 0:00:09.8]} 53... f6+
{[%clk 0:00:41]} 54. Kd4 {[%clk 0:00:08.8]} 54... Kh6 {[%clk 0:00:40.4]} 55.
Nxf5+ {[%clk 0:00:08.1]} 55... Kxh5 {[%clk 0:00:40.6]} 56. Ke4 {[%clk
0:00:08.7]} 56... Kg5 {[%clk 0:00:40.6]} 57. Ne3 {[%clk 0:00:09.1]} 57... f5+
{[%clk 0:00:40.9]} 58. Nxf5 {[%clk 0:00:08.7]} 1/2-1/2